[Event "Titled Tuesday Blitz January 25 2022"]
[White "Kirillov-Dmitry"]
[Black "Erdogdu, Mert"]
[BlackFideId "6301495"]
[WhiteElo "2478"]
[BlackElo "2485"]
[Result "1-0"]
[Round "03"]
[TimeControl "180+1"]
[Date "2022.01.26"]
[WhiteClock "0:00:03"]
[BlackClock "0:00:01"]

1. d4 {[%clk 0:02:59]}  d5 {[%clk 0:03:00]} 2. c4 {[%clk 0:02:59]}  e6 {[%clk 0:03:00]} 3. Nf3 {[%clk 0:02:58]}  c5 {[%clk 0:03:00]} 4. e3 {[%clk 0:02:58]}  Nf6 {[%clk 0:02:59]} 5. Nc3 {[%clk 0:02:56]}  a6 {[%clk 0:02:59]} 6. cxd5 {[%clk 0:02:53]}  exd5 {[%clk 0:02:59]} 7. b3 {[%clk 0:02:47]}  Nc6 {[%clk 0:02:58]} 8. Bb2 {[%clk 0:02:47]}  cxd4 {[%clk 0:02:58]} 9. Nxd4 {[%clk 0:02:46]}  Bb4 {[%clk 0:02:58]} 10. a3 {[%clk 0:02:30]}  Bd6 {[%clk 0:02:54]} 11. Be2 {[%clk 0:02:21]}  O-O {[%clk 0:02:54]} 12. O-O {[%clk 0:02:21]}  Re8 {[%clk 0:02:53]} 13. Bf3 {[%clk 0:02:18]}  Be6 {[%clk 0:02:37]} 14. Nce2 {[%clk 0:02:17]}  Ne5 {[%clk 0:02:34]} 15. Nf4 {[%clk 0:01:58]}  Nxf3+ {[%clk 0:02:29]} 16. Nxf3 {[%clk 0:01:56]}  Ne4 {[%clk 0:02:20]} 17. Qd4 {[%clk 0:01:45]}  Bf8 {[%clk 0:01:59]} 18. Rfd1 {[%clk 0:01:33]}  Rc8 {[%clk 0:01:51]} 19. Rac1 {[%clk 0:01:16]}  Rxc1 {[%clk 0:01:46]} 20. Rxc1 {[%clk 0:01:15]}  Qa5 {[%clk 0:01:28]} 21. Rd1 {[%clk 0:01:12]}  Rd8 {[%clk 0:01:22]} 22. Nxe6 {[%clk 0:01:10]}  fxe6 {[%clk 0:01:21]} 23. b4 {[%clk 0:01:06]}  Qa4 {[%clk 0:01:15]} 24. Rc1 {[%clk 0:01:03]}  Qd7 {[%clk 0:01:08]} 25. Qb6 {[%clk 0:00:51]}  Rc8 {[%clk 0:01:03]} 26. Rxc8 {[%clk 0:00:27]}  Qxc8 {[%clk 0:01:04]} 27. Nd4 {[%clk 0:00:27]}  Kf7 {[%clk 0:00:59]} 28. g3 {[%clk 0:00:24]}  Nd6 {[%clk 0:00:54]} 29. Nf3 {[%clk 0:00:19]}  Be7 {[%clk 0:00:38]} 30. Qd4 {[%clk 0:00:18]}  Bf6 {[%clk 0:00:36]} 31. Ne5+ {[%clk 0:00:11]}  Kg8 {[%clk 0:00:34]} 32. Qg4 {[%clk 0:00:08]}  Nf5 {[%clk 0:00:28]} 33. e4 {[%clk 0:00:07]}  dxe4 {[%clk 0:00:14]} 34. Qxe4 {[%clk 0:00:08]}  h6 {[%clk 0:00:12]} 35. Qd3 {[%clk 0:00:03]}  Qc7 {[%clk 0:00:08]} 36. Qe4 {[%clk 0:00:04]}  Qd8 {[%clk 0:00:07]} 37. Kg2 {[%clk 0:00:02]}  Qd5 {[%clk 0:00:07]} 38. Qxd5 {[%clk 0:00:02]}  exd5 {[%clk 0:00:07]} 39. Nd3 {[%clk 0:00:02]}  Bxb2 {[%clk 0:00:06]} 40. Nxb2 {[%clk 0:00:03]}  Kf7 {[%clk 0:00:07]} 41. Kf3 {[%clk 0:00:03]}  Nd4+ {[%clk 0:00:07]} 42. Kf4 {[%clk 0:00:01]}  Ke6 {[%clk 0:00:07]} 43. Nd3 {[%clk 0:00:01]}  Nc2 {[%clk 0:00:05]} 44. a4 {[%clk 0:00:02]}  Nd4 {[%clk 0:00:05]} 45. Nc5+ {[%clk 0:00:02]}  Kf6 {[%clk 0:00:04]} 46. Nxb7 {[%clk 0:00:03]}  Nc6 {[%clk 0:00:03]} 47. b5 {[%clk 0:00:03]}  axb5 {[%clk 0:00:04]} 48. axb5 {[%clk 0:00:04]}  Na7 {[%clk 0:00:02]} 49. Nd6 {[%clk 0:00:03]}  Ke6 {[%clk 0:00:02]} 50. b6 {[%clk 0:00:02]}  Nc6 {[%clk 0:00:02]} 51. Nb5 {[%clk 0:00:02]}  d4 {[%clk 0:00:02]} 52. Ke4 {[%clk 0:00:02]}  Kd7 {[%clk 0:00:02]} 53. Nxd4 {[%clk 0:00:02]}  Nb4 {[%clk 0:00:02]} 54. Nf5 {[%clk 0:00:02]}  Nc6 {[%clk 0:00:01]} 55. Nxg7 {[%clk 0:00:02]}  Kd6 {[%clk 0:00:01]} 56. Nf5+ {[%clk 0:00:03]} 1-0


[Site "https://www.chess.com"]

[Event "Titled Tuesday Blitz January 25 2022"]
[White "Klimkowski, Jan"]
[Black "Lauridsen, Jesper Morch"]
[WhiteFideId "21856222"]
[BlackFideId "1401890"]
[WhiteElo "2172"]
[BlackElo "2236"]
[Result "1-0"]
[Round "03"]
[TimeControl "180+1"]
[Date "2022.01.26"]
[WhiteClock "0:00:46"]
[BlackClock "0:00:01"]

1. e4 {[%clk 0:03:00]}  c5 {[%clk 0:02:59]} 2. Nf3 {[%clk 0:03:01]}  d6 {[%clk 0:02:59]} 3. d4 {[%clk 0:03:01]}  cxd4 {[%clk 0:02:59]} 4. Nxd4 {[%clk 0:03:02]}  Nf6 {[%clk 0:03:00]} 5. Nc3 {[%clk 0:03:02]}  g6 {[%clk 0:03:00]} 6. f4 {[%clk 0:03:01]}  Nc6 {[%clk 0:02:59]} 7. Be2 {[%clk 0:03:00]}  Bg7 {[%clk 0:02:52]} 8. Be3 {[%clk 0:03:00]}  O-O {[%clk 0:02:49]} 9. Qd2 {[%clk 0:02:56]}  Bd7 {[%clk 0:02:47]} 10. O-O {[%clk 0:02:56]}  Nxd4 {[%clk 0:02:38]} 11. Bxd4 {[%clk 0:02:56]}  b5 {[%clk 0:02:38]} 12. e5 {[%clk 0:02:53]}  dxe5 {[%clk 0:02:18]} 13. fxe5 {[%clk 0:02:53]}  b4 {[%clk 0:02:12]} 14. exf6 {[%clk 0:02:46]}  bxc3 {[%clk 0:02:12]} 15. Qxc3 {[%clk 0:02:15]}  exf6 {[%clk 0:02:11]} 16. Bxf6 {[%clk 0:02:07]}  Qb6+ {[%clk 0:02:10]} 17. Kh1 {[%clk 0:02:07]}  Rac8 {[%clk 0:02:05]} 18. Bxg7 {[%clk 0:02:07]}  Rxc3 {[%clk 0:02:02]} 19. Bxc3 {[%clk 0:02:08]}  Bb5 {[%clk 0:01:55]} 20. Rf6 {[%clk 0:02:02]}  Qb7 {[%clk 0:01:45]} 21. Bf3 {[%clk 0:02:01]}  Qc7 {[%clk 0:01:38]} 22. h3 {[%clk 0:01:40]}  Bc4 {[%clk 0:01:38]} 23. a3 {[%clk 0:01:36]}  Be6 {[%clk 0:01:35]} 24. Re1 {[%clk 0:01:32]}  Rd8 {[%clk 0:01:32]} 25. Rf1 {[%clk 0:01:28]}  Bd5 {[%clk 0:01:23]} 26. Bg4 {[%clk 0:01:12]}  Qc4 {[%clk 0:01:07]} 27. R6f2 {[%clk 0:01:11]}  h5 {[%clk 0:01:03]} 28. Be2 {[%clk 0:01:09]}  Qc8 {[%clk 0:01:01]} 29. Kg1 {[%clk 0:01:08]}  Bc4 {[%clk 0:00:58]} 30. Bxc4 {[%clk 0:01:05]}  Qxc4 {[%clk 0:00:58]} 31. Re1 {[%clk 0:01:03]}  Qc6 {[%clk 0:00:51]} 32. Rfe2 {[%clk 0:00:56]}  a6 {[%clk 0:00:42]} 33. Kh1 {[%clk 0:00:54]}  Qb5 {[%clk 0:00:29]} 34. Re5 {[%clk 0:00:52]}  Qc6 {[%clk 0:00:18]} 35. Re7 {[%clk 0:00:52]}  h4 {[%clk 0:00:13]} 36. R7e4 {[%clk 0:00:51]}  g5 {[%clk 0:00:06]} 37. Re5 {[%clk 0:00:51]}  Qg6 {[%clk 0:00:04]} 38. Re8+ {[%clk 0:00:45]}  Rxe8 {[%clk 0:00:01]} 39. Rxe8+ {[%clk 0:00:46]}  Kh7 {[%clk 0:00:01]} 40. Rh8# {[%clk 0:00:46]} 1-0


[Site "https://www.chess.com"]

[Event "Titled Tuesday Blitz January 25 2022"]
[White "Korchmar, Vasiliy"]
[Black "Shuvalov, Evgenij"]
[WhiteFideId "24131750"]
[BlackFideId "4187237"]
[WhiteElo "2370"]
[BlackElo "2119"]
[Result "1-0"]
[Round "03"]
[TimeControl "180+1"]
[Date "2022.01.26"]
[WhiteClock "0:00:07"]
[BlackClock "0:00:02"]

1. d4 {[%clk 0:03:00]}  Nf6 {[%clk 0:02:58]} 2. Bf4 {[%clk 0:03:00]}  d5 {[%clk 0:02:57]} 3. e3 {[%clk 0:02:59]}  c5 {[%clk 0:02:57]} 4. Nf3 {[%clk 0:02:58]}  Nc6 {[%clk 0:02:56]} 5. Nbd2 {[%clk 0:02:59]}  cxd4 {[%clk 0:02:54]} 6. exd4 {[%clk 0:02:59]}  Bf5 {[%clk 0:02:48]} 7. Bb5 {[%clk 0:02:57]}  a6 {[%clk 0:02:45]} 8. Bxc6+ {[%clk 0:02:56]}  bxc6 {[%clk 0:02:46]} 9. c4 {[%clk 0:02:56]}  e6 {[%clk 0:02:30]} 10. Qa4 {[%clk 0:02:55]}  Rc8 {[%clk 0:02:12]} 11. c5 {[%clk 0:02:32]}  Bd3 {[%clk 0:01:57]} 12. Ne5 {[%clk 0:02:32]}  Bb5 {[%clk 0:01:57]} 13. Qb3 {[%clk 0:02:33]}  a5 {[%clk 0:01:55]} 14. a4 {[%clk 0:02:19]}  Ba6 {[%clk 0:01:55]} 15. Qb6 {[%clk 0:02:20]}  Qxb6 {[%clk 0:01:47]} 16. cxb6 {[%clk 0:02:21]}  Nd7 {[%clk 0:01:27]} 17. Nxd7 {[%clk 0:02:03]}  Kxd7 {[%clk 0:01:28]} 18. Nb3 {[%clk 0:02:04]}  Bb4+ {[%clk 0:01:22]} 19. Bd2 {[%clk 0:01:58]}  Bc4 {[%clk 0:00:28]} 20. Nc5+ {[%clk 0:01:55]}  Bxc5 {[%clk 0:00:18]} 21. dxc5 {[%clk 0:01:56]}  Ra8 {[%clk 0:00:17]} 22. Bc3 {[%clk 0:01:42]}  f6 {[%clk 0:00:17]} 23. f4 {[%clk 0:01:43]}  e5 {[%clk 0:00:16]} 24. fxe5 {[%clk 0:01:33]}  fxe5 {[%clk 0:00:17]} 25. O-O-O {[%clk 0:01:02]}  d4 {[%clk 0:00:16]} 26. Rhe1 {[%clk 0:00:47]}  Rhe8 {[%clk 0:00:15]} 27. Kc2 {[%clk 0:00:37]}  Re7 {[%clk 0:00:11]} 28. b3 {[%clk 0:00:37]}  Ba6 {[%clk 0:00:10]} 29. Bxa5 {[%clk 0:00:36]}  Ke8 {[%clk 0:00:07]} 30. Re4 {[%clk 0:00:29]}  d3+ {[%clk 0:00:04]} 31. Kd2 {[%clk 0:00:27]}  Rb8 {[%clk 0:00:04]} 32. Bc3 {[%clk 0:00:27]}  Rd8 {[%clk 0:00:03]} 33. Rde1 {[%clk 0:00:27]}  Rd5 {[%clk 0:00:03]} 34. Rxe5 {[%clk 0:00:21]}  Rexe5 {[%clk 0:00:03]} 35. Rxe5+ {[%clk 0:00:21]}  Rxe5 {[%clk 0:00:03]} 36. Bxe5 {[%clk 0:00:22]}  Kd7 {[%clk 0:00:03]} 37. Bxg7 {[%clk 0:00:21]}  Ke6 {[%clk 0:00:02]} 38. b4 {[%clk 0:00:12]}  Kd5 {[%clk 0:00:02]} 39. g4 {[%clk 0:00:07]}  Kc4 {[%clk 0:00:02]} 40. Bc3 {[%clk 0:00:07]}  Kb3 {[%clk 0:00:02]} 41. a5 {[%clk 0:00:03]}  Kc4 {[%clk 0:00:01]} 42. g5 {[%clk 0:00:03]}  Kd5 {[%clk 0:00:01]} 43. h4 {[%clk 0:00:04]}  Ke4 {[%clk 0:00:01]} 44. h5 {[%clk 0:00:04]}  Kf5 {[%clk 0:00:02]} 45. Bf6 {[%clk 0:00:04]}  Ke6 {[%clk 0:00:01]} 46. Bc3 {[%clk 0:00:03]}  Kf7 {[%clk 0:00:01]} 47. Bf6 {[%clk 0:00:03]}  Kg8 {[%clk 0:00:01]} 48. Ke3 {[%clk 0:00:03]}  Kf7 {[%clk 0:00:01]} 49. Bc3 {[%clk 0:00:04]}  Kg8 {[%clk 0:00:02]} 50. Kf4 {[%clk 0:00:04]}  Kf7 {[%clk 0:00:02]} 51. Ke5 {[%clk 0:00:05]}  Kf8 {[%clk 0:00:03]} 52. Ke6 {[%clk 0:00:05]}  Kg8 {[%clk 0:00:03]} 53. Kd7 {[%clk 0:00:05]}  Bb5 {[%clk 0:00:03]} 54. b7 {[%clk 0:00:05]}  d2 {[%clk 0:00:03]} 55. b8=Q+ {[%clk 0:00:06]}  Kf7 {[%clk 0:00:03]} 56. Bxd2 {[%clk 0:00:07]}  Bc4 {[%clk 0:00:03]} 57. Qf4+ {[%clk 0:00:07]}  Kg8 {[%clk 0:00:03]} 58. Ke7 {[%clk 0:00:07]}  Be6 {[%clk 0:00:02]} 59. Qf8# {[%clk 0:00:07]} 1-0


[Site "https://www.chess.com"]

[Event "Titled Tuesday Blitz January 25 2022"]
[White "Kozak, Antoni"]
[Black "Piorun, Kacper"]
[WhiteFideId "21832030"]
[BlackFideId "1130420"]
[WhiteElo "2232"]
[BlackElo "2571"]
[Result "0-1"]
[Round "03"]
[TimeControl "180+1"]
[Date "2022.01.26"]
[WhiteClock "0:00:04"]
[BlackClock "0:00:15"]

1. d4 {[%clk 0:03:00]}  c5 {[%clk 0:02:57]} 2. d5 {[%clk 0:03:00]}  g6 {[%clk 0:02:57]} 3. c4 {[%clk 0:02:59]}  Bg7 {[%clk 0:02:57]} 4. e4 {[%clk 0:02:58]}  d6 {[%clk 0:02:56]} 5. Bd3 {[%clk 0:02:54]}  Nf6 {[%clk 0:02:53]} 6. h3 {[%clk 0:02:54]}  O-O {[%clk 0:02:53]} 7. Nf3 {[%clk 0:02:54]}  e6 {[%clk 0:02:53]} 8. Nc3 {[%clk 0:02:42]}  exd5 {[%clk 0:02:52]} 9. exd5 {[%clk 0:02:42]}  Re8+ {[%clk 0:02:49]} 10. Be3 {[%clk 0:02:43]}  a6 {[%clk 0:02:47]} 11. a4 {[%clk 0:02:32]}  Nbd7 {[%clk 0:02:39]} 12. O-O {[%clk 0:02:31]}  Nh5 {[%clk 0:02:26]} 13. Qd2 {[%clk 0:02:14]}  Ne5 {[%clk 0:02:25]} 14. Nxe5 {[%clk 0:02:13]}  Bxe5 {[%clk 0:02:24]} 15. Rfe1 {[%clk 0:02:11]}  Bd7 {[%clk 0:02:19]} 16. Be2 {[%clk 0:01:57]}  Ng7 {[%clk 0:02:15]} 17. g4 {[%clk 0:01:30]}  f5 {[%clk 0:01:54]} 18. f4 {[%clk 0:01:15]}  Bd4 {[%clk 0:01:06]} 19. Bxd4 {[%clk 0:01:13]}  cxd4 {[%clk 0:01:07]} 20. Qxd4 {[%clk 0:01:14]}  Qh4 {[%clk 0:01:07]} 21. Qf2 {[%clk 0:00:58]}  Qxh3 {[%clk 0:01:06]} 22. g5 {[%clk 0:00:54]}  Re3 {[%clk 0:00:44]} 23. Bf1 {[%clk 0:00:49]}  Rg3+ {[%clk 0:00:38]} 24. Bg2 {[%clk 0:00:48]}  Nh5 {[%clk 0:00:39]} 25. Ne2 {[%clk 0:00:44]}  Rg4 {[%clk 0:00:30]} 26. c5 {[%clk 0:00:30]}  Re8 {[%clk 0:00:27]} 27. c6 {[%clk 0:00:30]}  bxc6 {[%clk 0:00:26]} 28. dxc6 {[%clk 0:00:30]}  Bxc6 {[%clk 0:00:26]} 29. Ng3 {[%clk 0:00:20]}  Qxg3 {[%clk 0:00:16]} 30. Rxe8+ {[%clk 0:00:18]}  Bxe8 {[%clk 0:00:17]} 31. Qxg3 {[%clk 0:00:15]}  Rxg3 {[%clk 0:00:17]} 32. Kf2 {[%clk 0:00:10]}  Rg4 {[%clk 0:00:17]} 33. a5 {[%clk 0:00:05]}  Rxf4+ {[%clk 0:00:17]} 34. Ke3 {[%clk 0:00:05]}  Rb4 {[%clk 0:00:16]} 35. Bf1 {[%clk 0:00:04]}  Bb5 {[%clk 0:00:16]} 36. Bxb5 {[%clk 0:00:04]}  Rxb5 {[%clk 0:00:16]} 37. Rd1 {[%clk 0:00:04]}  Rxa5 {[%clk 0:00:15]} 0-1


[Site "https://www.chess.com"]

[Event "Titled Tuesday Blitz January 25 2022"]
[White "Kretov, Evgenij"]
[Black "Willow, Jonah B"]
[WhiteFideId "4167821"]
[BlackFideId "438804"]
[WhiteElo "2303"]
[BlackElo "2261"]
[Result "0-1"]
[Round "03"]
[TimeControl "180+1"]
[Date "2022.01.26"]
[WhiteClock "0:00:22"]
[BlackClock "0:00:42"]

1. d4 {[%clk 0:03:00]}  Nf6 {[%clk 0:02:59]} 2. c4 {[%clk 0:03:01]}  e6 {[%clk 0:03:00]} 3. Nc3 {[%clk 0:03:01]}  c5 {[%clk 0:03:00]} 4. d5 {[%clk 0:03:01]}  exd5 {[%clk 0:03:01]} 5. cxd5 {[%clk 0:03:01]}  d6 {[%clk 0:03:02]} 6. e4 {[%clk 0:03:01]}  g6 {[%clk 0:03:02]} 7. f4 {[%clk 0:03:02]}  Bg7 {[%clk 0:03:01]} 8. Bb5+ {[%clk 0:03:02]}  Nfd7 {[%clk 0:03:01]} 9. a4 {[%clk 0:03:03]}  O-O {[%clk 0:02:59]} 10. Nf3 {[%clk 0:03:03]}  Na6 {[%clk 0:02:59]} 11. O-O {[%clk 0:03:04]}  Nb4 {[%clk 0:03:00]} 12. Re1 {[%clk 0:03:04]}  a6 {[%clk 0:02:59]} 13. Bf1 {[%clk 0:03:04]}  Re8 {[%clk 0:03:00]} 14. Be3 {[%clk 0:03:03]}  f5 {[%clk 0:02:51]} 15. Ng5 {[%clk 0:02:59]}  fxe4 {[%clk 0:02:36]} 16. Ne6 {[%clk 0:02:57]}  Qa5 {[%clk 0:02:24]} 17. Nxe4 {[%clk 0:02:55]}  Nf8 {[%clk 0:02:07]} 18. Nxd6 {[%clk 0:02:51]}  Rxe6 {[%clk 0:01:46]} 19. dxe6 {[%clk 0:02:43]}  Bxe6 {[%clk 0:01:47]} 20. Bc4 {[%clk 0:02:36]}  Rd8 {[%clk 0:01:39]} 21. Bxe6+ {[%clk 0:02:29]}  Nxe6 {[%clk 0:01:40]} 22. Nxb7 {[%clk 0:02:27]}  Rxd1 {[%clk 0:01:36]} 23. Nxa5 {[%clk 0:02:27]}  Rxa1 {[%clk 0:01:37]} 24. Rxa1 {[%clk 0:02:27]}  Nc2 {[%clk 0:01:38]} 25. Rd1 {[%clk 0:02:18]}  Nxe3 {[%clk 0:01:36]} 26. Rd6 {[%clk 0:02:18]}  Nxf4 {[%clk 0:01:36]} 27. Rxa6 {[%clk 0:02:17]}  Bd4 {[%clk 0:01:32]} 28. Nb3 {[%clk 0:02:13]}  Bxb2 {[%clk 0:01:30]} 29. Nxc5 {[%clk 0:02:12]}  Nexg2 {[%clk 0:01:30]} 30. Ra8+ {[%clk 0:02:01]}  Kf7 {[%clk 0:01:28]} 31. Rd8 {[%clk 0:01:56]}  Ke7 {[%clk 0:01:24]} 32. Rd2 {[%clk 0:01:54]}  Bc3 {[%clk 0:01:22]} 33. Rxg2 {[%clk 0:01:39]}  Bd4+ {[%clk 0:01:22]} 34. Kh1 {[%clk 0:01:39]}  Bxc5 {[%clk 0:01:16]} 35. Rc2 {[%clk 0:01:36]}  Kd6 {[%clk 0:01:15]} 36. a5 {[%clk 0:01:35]}  Nd5 {[%clk 0:01:15]} 37. a6 {[%clk 0:01:30]}  Nc7 {[%clk 0:01:14]} 38. Ra2 {[%clk 0:01:21]}  Kc6 {[%clk 0:01:14]} 39. Kg2 {[%clk 0:01:10]}  Kb6 {[%clk 0:01:15]} 40. a7 {[%clk 0:01:09]}  Kb7 {[%clk 0:01:16]} 41. Re2 {[%clk 0:00:59]}  Kxa7 {[%clk 0:01:14]} 42. Kf3 {[%clk 0:00:56]}  Kb6 {[%clk 0:01:13]} 43. Kf4 {[%clk 0:00:55]}  Kc6 {[%clk 0:01:13]} 44. Kg5 {[%clk 0:00:55]}  Bf8 {[%clk 0:01:08]} 45. Kf6 {[%clk 0:00:54]}  Nd5+ {[%clk 0:01:08]} 46. Kf7 {[%clk 0:00:54]}  Bd6 {[%clk 0:01:08]} 47. Kg8 {[%clk 0:00:53]}  h5 {[%clk 0:01:07]} 48. Kh7 {[%clk 0:00:53]}  Nf4 {[%clk 0:01:02]} 49. Rd2 {[%clk 0:00:52]}  g5 {[%clk 0:01:02]} 50. Kh6 {[%clk 0:00:52]}  Be7 {[%clk 0:01:00]} 51. Rd1 {[%clk 0:00:44]}  h4 {[%clk 0:01:00]} 52. Rg1 {[%clk 0:00:41]}  Ne6 {[%clk 0:00:52]} 53. Kh5 {[%clk 0:00:39]}  Kd5 {[%clk 0:00:51]} 54. Kg4 {[%clk 0:00:38]}  Ke5 {[%clk 0:00:52]} 55. Re1+ {[%clk 0:00:38]}  Kf6 {[%clk 0:00:52]} 56. h3 {[%clk 0:00:38]}  Bd8 {[%clk 0:00:49]} 57. Rf1+ {[%clk 0:00:38]}  Kg6 {[%clk 0:00:49]} 58. Ra1 {[%clk 0:00:36]}  Bf6 {[%clk 0:00:48]} 59. Ra6 {[%clk 0:00:36]}  Nd8 {[%clk 0:00:45]} 60. Ra8 {[%clk 0:00:36]}  Nf7 {[%clk 0:00:45]} 61. Rg8+ {[%clk 0:00:35]}  Kh7 {[%clk 0:00:45]} 62. Rf8 {[%clk 0:00:31]}  Kg7 {[%clk 0:00:44]} 63. Ra8 {[%clk 0:00:30]}  Kg6 {[%clk 0:00:43]} 64. Rg8+ {[%clk 0:00:29]}  Bg7 {[%clk 0:00:43]} 65. Re8 {[%clk 0:00:22]}  Ne5+ {[%clk 0:00:42]} 66. Rxe5 {[%clk 0:00:22]}  Bxe5 {[%clk 0:00:42]} 0-1


[Site "https://www.chess.com"]

[Event "Titled Tuesday Blitz January 25 2022"]
[White "Krzywda, Andrzej"]
[Black "Rychagov, Andrey"]
[WhiteFideId "1114565"]
[BlackFideId "4119932"]
[WhiteElo "2098"]
[BlackElo "2500"]
[Result "0-1"]
[Round "03"]
[TimeControl "180+1"]
[Date "2022.01.26"]
[WhiteClock "0:00:01"]
[BlackClock "0:00:04"]

1. e4 {[%clk 0:03:00]}  c5 {[%clk 0:02:57]} 2. Nc3 {[%clk 0:03:00]}  Nc6 {[%clk 0:02:56]} 3. Bb5 {[%clk 0:03:00]}  g6 {[%clk 0:02:56]} 4. Bxc6 {[%clk 0:03:00]}  dxc6 {[%clk 0:02:56]} 5. d3 {[%clk 0:03:01]}  Bg7 {[%clk 0:02:57]} 6. f4 {[%clk 0:03:02]}  Nf6 {[%clk 0:02:54]} 7. Nf3 {[%clk 0:03:02]}  Bg4 {[%clk 0:02:54]} 8. O-O {[%clk 0:03:03]}  O-O {[%clk 0:02:54]} 9. h3 {[%clk 0:03:03]}  Bxf3 {[%clk 0:02:53]} 10. Qxf3 {[%clk 0:03:04]}  Nd7 {[%clk 0:02:40]} 11. Be3 {[%clk 0:03:01]}  b6 {[%clk 0:02:39]} 12. e5 {[%clk 0:03:01]}  Qc7 {[%clk 0:02:38]} 13. Ne4 {[%clk 0:03:01]}  Rfe8 {[%clk 0:02:28]} 14. a4 {[%clk 0:02:52]}  Nf8 {[%clk 0:02:27]} 15. Rae1 {[%clk 0:02:35]}  Qd7 {[%clk 0:02:16]} 16. h4 {[%clk 0:02:07]}  h5 {[%clk 0:01:37]} 17. Qg3 {[%clk 0:01:51]}  Qf5 {[%clk 0:01:21]} 18. b3 {[%clk 0:01:41]}  Ne6 {[%clk 0:01:19]} 19. Nd2 {[%clk 0:01:34]}  Bh6 {[%clk 0:01:12]} 20. Nc4 {[%clk 0:01:27]}  Ng7 {[%clk 0:01:08]} 21. Bc1 {[%clk 0:01:24]}  Qg4 {[%clk 0:00:39]} 22. Qf2 {[%clk 0:01:24]}  Nf5 {[%clk 0:00:38]} 23. Ne3 {[%clk 0:01:22]}  Qxh4 {[%clk 0:00:35]} 24. Nxf5 {[%clk 0:01:17]}  Qxf2+ {[%clk 0:00:35]} 25. Kxf2 {[%clk 0:01:18]}  gxf5 {[%clk 0:00:35]} 26. Rh1 {[%clk 0:01:18]}  Kg7 {[%clk 0:00:36]} 27. Rxh5 {[%clk 0:01:18]}  Kg6 {[%clk 0:00:36]} 28. Reh1 {[%clk 0:01:15]}  Rh8 {[%clk 0:00:35]} 29. g4 {[%clk 0:01:15]}  e6 {[%clk 0:00:36]} 30. gxf5+ {[%clk 0:01:00]}  exf5 {[%clk 0:00:36]} 31. R5h3 {[%clk 0:01:00]}  Rag8 {[%clk 0:00:27]} 32. Rg1+ {[%clk 0:00:47]}  Kh7 {[%clk 0:00:27]} 33. Rgh1 {[%clk 0:00:41]}  Rg6 {[%clk 0:00:27]} 34. Rh5 {[%clk 0:00:42]}  Rhg8 {[%clk 0:00:26]} 35. R1h2 {[%clk 0:00:39]}  f6 {[%clk 0:00:21]} 36. Rxf5 {[%clk 0:00:35]}  fxe5 {[%clk 0:00:20]} 37. fxe5 {[%clk 0:00:32]}  Kg7 {[%clk 0:00:19]} 38. Bxh6+ {[%clk 0:00:30]}  Rxh6 {[%clk 0:00:19]} 39. Rxh6 {[%clk 0:00:21]}  Kxh6 {[%clk 0:00:19]} 40. Rf6+ {[%clk 0:00:22]}  Kg5 {[%clk 0:00:19]} 41. Rxc6 {[%clk 0:00:22]}  Rh8 {[%clk 0:00:16]} 42. Ke3 {[%clk 0:00:19]}  Rh2 {[%clk 0:00:14]} 43. Ke4 {[%clk 0:00:18]}  Rxc2 {[%clk 0:00:14]} 44. Kd5 {[%clk 0:00:18]}  Rc3 {[%clk 0:00:13]} 45. e6 {[%clk 0:00:16]}  Rxd3+ {[%clk 0:00:13]} 46. Ke5 {[%clk 0:00:14]}  Re3+ {[%clk 0:00:12]} 47. Kd6 {[%clk 0:00:14]}  Kf6 {[%clk 0:00:12]} 48. Kd7 {[%clk 0:00:14]}  Re1 {[%clk 0:00:08]} 49. Rc8 {[%clk 0:00:06]}  Rxe6 {[%clk 0:00:06]} 50. Rf8+ {[%clk 0:00:05]}  Ke5 {[%clk 0:00:07]} 51. Rf7 {[%clk 0:00:03]}  Rd6+ {[%clk 0:00:04]} 52. Kc8 {[%clk 0:00:02]}  Rd3 {[%clk 0:00:04]} 53. Rxa7 {[%clk 0:00:02]}  Rxb3 {[%clk 0:00:04]} 54. Kc7 {[%clk 0:00:02]}  Kd4 {[%clk 0:00:04]} 55. Kc6 {[%clk 0:00:01]}  c4 {[%clk 0:00:04]} 56. Rd7+ {[%clk 0:00:01]}  Kc3 {[%clk 0:00:04]} 0-1


[Site "https://www.chess.com"]